Cogmind - Beta 14 @@@ ROGUE MODE // 2024.09.01 @ 17:57:30 Player: s0lid Result: Destroyed self with Mini Grenade Launcher Performance ------------- Evolutions (1) 500 Regions Visited (5) 1000 Robots Destroyed (19) 95 Value Destroyed (570) 570 Prototype IDs (0) 0 Alien Tech Used (0) 0 Bonus (0) 0 TOTAL SCORE: 2165 Bonus ------- None Cogmind --------- Core Integrity 0/400 Matter 222/300 Energy 100/100 System Corruption 1% Temperature Cool (0) Movement Rolling (140) Ox4 Location -8/Mines Parts ------- > --- POWER (1) -------- (None) > --- PROPULSION (3) --- Wheel > --- UTILITY (3) ------ High-capacity Storage Unit Visual Processing Unit Signal Interpreter > --- WEAPON (2) ------- Mini Grenade Launcher > --- INVENTORY (20) --- Light Ion Engine Medium Storage Unit Large Storage Unit Large Battery (200) High-capacity Matter Pod (200) Datajack Peak State ------------ > --- POWER ------------ Light Ion Engine > --- PROPULSION ------- Aluminum Leg Aluminum Leg Aluminum Leg > --- UTILITY ---------- Medium Storage Unit Visual Processing Unit Signal Interpreter > --- WEAPON ----------- Assault Rifle Mini Grenade Launcher > --- INVENTORY -------- Light Ion Engine Reinforced Deuterium Engine Light Fission Core Light Fission Core Wheel Large Storage Unit Large Battery High-capacity Matter Pod Grenade Launcher Datajack [Rating: 13] Favorites ----------- Power Light Ion Engine Engine Light Ion Engine Propulsion Aluminum Leg Leg Aluminum Leg Wheel Wheel Utility Signal Interpreter Device Heat Sink Storage High-capacity Storage Unit Processor Signal Interpreter Weapon Assault Rifle Energy Gun Medium Laser Ballistic Gun Assault Rifle Launcher Mini Grenade Launcher Build | -11 -10 -9 -9 -9 -8 ------- Run | Yrd Mat Mat Min Exi Min Slots Evolved 2 | . . 2 . . . Power . | . . . . . . Propulsion 1 | . . 1 . . . Utility 1 | . . 1 . . . Weapon . | . . . . . . Parts Attached 30 | 6 8 2 9 2 3 Power 3 | 1 1 . 1 . . Engine 3 | 1 1 . 1 . . Core . | . . . . . . Reactor . | . . . . . . Propulsion 11 | 2 2 . 5 1 1 Treads . | . . . . . . Leg 8 | . 2 . 5 . 1 Wheel 3 | 2 . . . 1 . Hover . | . . . . . . Flight . | . . . . . . Utility 7 | 1 4 . 1 1 . Device 1 | . 1 . . . . Storage 4 | 1 2 . . 1 . Processor 2 | . 1 . 1 . . Hackware . | . . . . . . Protection . | . . . . . . Artifact . | . . . . . . Weapon 9 | 2 1 2 2 . 2 Energy Gun 4 | 1 1 2 . . . Energy Cannon . | . . . . . . Ballistic Gun 2 | 1 . . 1 . . Ballistic Cannon . | . . . . . . Launcher 3 | . . . 1 . 2 Special Weapon . | . . . . . . Impact Weapon . | . . . . . . Slashing Weapon . | . . . . . . Piercing Weapon . | . . . . . . Special Melee Weapon . | . . . . . . Unidentified Prototypes . | . . . . . . Parts Lost 12 | . 1 1 4 . 6 Power 1 | . . . . . 1 Propulsion 7 | . 1 . 3 . 3 Utility . | . . . . . . Weapon 4 | . . 1 1 . 2 Highest Loss Streak 5 | . 1 1 4 . 5 To Critical Strikes . | . . . . . . Average Slot Usage (%) 91 | . 92 76 91 100 90 Engine 10 | . 14 11 11 11 8 Leg 22 | . 18 22 27 28 18 Wheel 6 | . 7 . . 4 11 Storage 11 | . 14 11 11 11 11 Processor 18 | . 3 11 19 22 22 Energy Gun 2 | . 14 17 . . . Ballistic Gun 9 | . 14 3 10 11 7 Launcher 8 | . . . 11 11 11 Peak Build Rating 13 | 6 8 10 11 13 13 Average Rating 10 | 4 6 9 10 12 11 On Entrance 7 | . 6 8 8 11 13 Naked Turns . | . . . . . . Heaviest Build 46 | 12 30 21 18 46 46 Greatest Support 30 | 20 20 20 30 30 10 Greatest Overweight (x) 4 | . 1 1 . 4 4 Average Overweight (x) 1 | . . . . 1 4 Largest Inventory Capacity 20 | 8 15 10 10 20 20 Average Capacity 14 | 7 9 10 10 13 20 Most Carried 11 | 1 10 10 10 11 11 Average Carried 8 | . 6 10 8 9 9 Final Capacity 20 | 8 10 10 10 20 20 Final Carried 11 | 1 10 10 8 11 6 Class Distribution -------------------- 73% | Mutant 26% | Scavenger-Mutant Dominant Class ---------------- Mutant | -10/Materials Mutant | -9/Materials Scavenger-Mutant | -9/Mines Scavenger-Mutant | -9/Exiles Mutant | -8/Mines Resources | -11 -10 -9 -9 -9 -8 ----------- Run | Yrd Mat Mat Min Exi Min Matter Collected 847 | 260 85 100 315 . 87 Remotely . | . . . . . . Salvage Created 468 | . 304 . 100 . 64 Parts 28 | . 14 . 7 . 7 Haulers Intercepted . | . . . . . . Recyclers Shooed . | . . . . . . Parts Field Recycled . | . . . . . . Retrieved Matter . | . . . . . . Parts Self-Destructed . | . . . . . . Prevented . | . . . . . . Kills | -11 -10 -9 -9 -9 -8 ------- Run | Yrd Mat Mat Min Exi Min Combat Hostiles Destroyed 18 | . 7 . 6 . 5 Guns 9 | . 6 . 2 . 1 AOE 8 | . . . 4 . 4 Classes Destroyed 4 | . 1 . 2 . 1 Tunneler 1 | . . . 1 . . Swarmer 6 | . . . 3 . 3 Grunt 11 | . 7 . 3 . 1 Duelist 1 | . . . . . 1 Best Kill Streak 7 | . 7 . 3 . 3 Combat Bots Only 7 | . 7 . 3 . 3 Max Kills in Single Turn 3 | . 1 . 2 . 3 Gunslinging . | . . . . . . Exploded 2 | . . . 2 . 2 Melee . | . . . . . . Uniques/NPCs Destroyed . | . . . . . . Combat | -11 -10 -9 -9 -9 -8 -------- Run | Yrd Mat Mat Min Exi Min Hostile Shots Fired 115 | . 30 37 20 . 28 Missed 38 | . 9 16 5 . 8 Damage Taken 1529 | . 285 302 253 . 689 Core 495 | . 88 28 78 . 301 Absorbed by Shields . | . . . . . . Core Remaining (%) 82 | 100 64 . . . . Volleys Fired 49 | . 20 . 14 . 15 Largest 2 | . 2 . 2 . 2 Hottest 95 | . 70 . 95 . 50 Shots Fired 74 | . 40 . 17 . 17 Gun 57 | . 40 . 11 . 6 Cannon . | . . . . . . Launcher 17 | . . . 6 . 11 Special . | . . . . . . Kinetic 36 | . 20 . 10 . 6 Thermal 21 | . 20 . 1 . . Explosive 17 | . . . 6 . 11 Electromagnetic . | . . . . . . Robot Hit Streak 5 | . 5 . 2 . 5 Robot Miss Streak 2 | . 2 . 1 . 1 Penetration Max . | . . . . . . Secondary Targets . | . . . . . . Shots Hit Robots 45 | . 25 . 8 . 12 Core Hits 29 | . 13 . 9 . 7 Critical Kills 1 | . 1 . . . . Critical Parts Destroyed 1 | . 1 . . . . Critical Strikes 4 | . 4 . . . . Burn 2 | . 2 . . . . Destroy 2 | . 2 . . . . Melee Attacks . | . . . . . . Impact . | . . . . . . Slashing . | . . . . . . Piercing . | . . . . . . Sneak Attacks . | . . . . . . Combat Hostiles . | . . . . . . Follow-up Attacks . | . . . . . . Damage Inflicted 1301 | . 313 . 430 . 558 Guns 472 | . 313 . 98 . 61 Cannons . | . . . . . . Explosions 829 | . . . 332 . 497 Melee . | . . . . . . Ramming . | . . . . . . Kinetic 322 | . 175 . 86 . 61 Thermal 150 | . 138 . 12 . . Explosive 829 | . . . 332 . 497 Electromagnetic . | . . . . . . Impact . | . . . . . . Slashing . | . . . . . . Piercing . | . . . . . . Highest Corruption 1 | . . . . . 1 Average Corruption 1 | . . . . . 1 Corruption Purged . | . . . . . . Corruption Blocked . | . . . . . . Overload Shots . | . . . . . . Overflow Damage 23 | . . . 12 . 11 Projectiles . | . . . . . . Explosions 23 | . . . 12 . 11 Melee . | . . . . . . Knockbacks . | . . . . . . Impact . | . . . . . . Kinetic . | . . . . . . Secondary . | . . . . . . Self-Inflicted Damage 220 | . . . 14 . 206 Shots 9 | . . . 1 . 8 Rammed . | . . . . . . Targets Rammed . | . . . . . . Kicked . | . . . . . . Crushed . | . . . . . . Highest Temperature 294 | . 294 . 52 . 2 Average Temperature 148 | . 172 . 30 . 1 Received Heat Transfer 435 | . 180 93 117 . 45 Effects 1 | . 1 . . . . Energy Bleed 1 | . 1 . . . . Siege Activations . | . . . . . . Robots Corrupted . | . . . . . . Combat Hostiles . | . . . . . . Parts Fried . | . . . . . . Impact Corruptions . | . . . . . . Robots Melted 1 | . 1 . . . . Combat Hostiles 1 | . 1 . . . . Parts Melted 4 | . 4 . . . . Heat Transferred 570 | . 555 . 15 . . Parts Sabotaged . | . . . . . . Parts Stolen . | . . . . . . Parts Stripped . | . . . . . . Power Chain Reactions . | . . . . . . Alert | -11 -10 -9 -9 -9 -8 ------- Run | Yrd Mat Mat Min Exi Min Peak Influence 222 | . 205 115 222 . 79 Initial 86 | . . 86 44 . . Average 88 | . 149 99 159 . 30 Maximum Alert Level 1 | . 1 . 1 . . Low Security (%) 78 | 100 69 100 40 . 100 Level 1 21 | . 30 . 59 . . Level 2 . | . . . . . . Level 3 . | . . . . . . Level 4 . | . . . . . . Level 5 . | . . . . . . High Security . | . . . . . . Max Security . | . . . . . . Squads Dispatched 3 | . 2 . . . 1 Investigation 2 | . 1 . . . 1 Extermination . | . . . . . . Reinforcement 1 | . 1 . . . . Assault . | . . . . . . Garrison . | . . . . . . Intercept . | . . . . . . Searches Triggered . | . . . . . . Construction Impeded . | . . . . . . Haulers Reinforced . | . . . . . . Active Scanning Responses . | . . . . . . Cargo Convoy Interrupts . | . . . . . . Stealth | -11 -10 -9 -9 -9 -8 --------- Run | Yrd Mat Mat Min Exi Min Distress Signals 2 | . 1 1 . . . Communications Jammed . | . . . . . . Distress Signals . | . . . . . . Times Spotted 38 | . 12 11 8 . 7 Peak Tracking Total 12 | . 6 12 3 . 3 Tactical Retreats 1 | . 1 . . . . Traps | -11 -10 -9 -9 -9 -8 ------- Run | Yrd Mat Mat Min Exi Min Traps Triggered 1 | . 1 . . . . Indirectly . | . . . . . . Trap Hack Attempts . | . . . . . . Triggered . | . . . . . . Disarmed . | . . . . . . Reprogrammed . | . . . . . . Reused . | . . . . . . Traps Extracted . | . . . . . . Installed . | . . . . . . Triggered . | . . . . . . Machines | -11 -10 -9 -9 -9 -8 ---------- Run | Yrd Mat Mat Min Exi Min Machines Disabled 3 | . . . 2 . 1 Max in Single Turn 1 | . . . 1 . 1 Machines Repaired . | . . . . . . Machines Dismantled . | . . . . . . Machines Sabotaged . | . . . . . . Overloaded Fab Kills . | . . . . . . Hacking | -11 -10 -9 -9 -9 -8 --------- Run | Yrd Mat Mat Min Exi Min Machines Accessed 3 | . . 2 . . 1 Terminals 3 | . . 2 . . 1 Fabricators . | . . . . . . Repair Stations . | . . . . . . Recycling Units . | . . . . . . Scanalyzers . | . . . . . . Garrison Access . | . . . . . . Total Hacks 7 | . . 5 . . 2 Successful 3 | . . 2 . . 1 Failed 4 | . . 3 . . 1 Catastrophic 2 | . . 1 . . 1 Database Lockouts . | . . . . . . Manual 5 | . . 3 . . 2 Terminals 7 | . . 5 . . 2 Fabricators . | . . . . . . Repair Stations . | . . . . . . Recycling Units . | . . . . . . Scanalyzers . | . . . . . . Garrison Access . | . . . . . . Terminal Hacks 2 | . . 1 . . 1 Robot Analysis 1 | . . . . . 1 Locate Traps 1 | . . 1 . . . Fabricator Hacks . | . . . . . . Repair Station Hacks . | . . . . . . Recycling Unit Hacks . | . . . . . . Scanalyzer . | . . . . . . Garrison Access Hacks . | . . . . . . Unauthorized Hacks 1 | . . 1 . . . Terminals 1 | . . 1 . . . Botnet 1 | . . 1 . . . Fabricators . | . . . . . . Repair Stations . | . . . . . . Recycling Units . | . . . . . . Scanalyzers . | . . . . . . Garrison Access . | . . . . . . Data Cores Recovered . | . . . . . . Used . | . . . . . . Hacking Detections 3 | . . 2 . . 1 Full Trace Events 1 | . . . . . 1 Feedback Events 1 | . . . . . 1 Corruption 1 | . . . . . 1 Feedback Blocked . | . . . . . . Robot Schematics Acquired . | . . . . . . Robots Built . | . . . . . . Authchips . | . . . . . . Time . | . . . . . . Total Robot Build Rating . | . . . . . . Part Schematics Acquired . | . . . . . . Parts Built . | . . . . . . Authchips . | . . . . . . Time . | . . . . . . Total Part Build Rating . | . . . . . . Parts Repaired . | . . . . . . Time . | . . . . . . Parts Recycled . | . . . . . . Recycled Matter . | . . . . . . Retrieved Matter . | . . . . . . Retrieved Components . | . . . . . . Parts Scanalyzed . | . . . . . . Part Schematics Acquired . | . . . . . . Parts Damaged . | . . . . . . Bothacking | -11 -10 -9 -9 -9 -8 ------------ Run | Yrd Mat Mat Min Exi Min Used RIF Installer . | . . . . . . Robots Hacked . | . . . . . . Non-combat . | . . . . . . Combat . | . . . . . . Robot Hacks Applied . | . . . . . . Relay Couplers Released . | . . . . . . Fabnet Peak Effective % . | . . . . . . Robots Rewired . | . . . . . . Allies Hacked . | . . . . . . Hacks Repelled . | . . . . . . Allies | -11 -10 -9 -9 -9 -8 -------- Run | Yrd Mat Mat Min Exi Min Total Allies . | . . . . . . Largest Group . | . . . . . . Highest-Rated Group . | . . . . . . Highest-Rated Ally . | . . . . . . Total Orders . | . . . . . . Ally Attacks . | . . . . . . Total Damage . | . . . . . . Kills . | . . . . . . Allies Corrupted . | . . . . . . Allies Melted . | . . . . . . Intel | -11 -10 -9 -9 -9 -8 ------- Run | Yrd Mat Mat Min Exi Min Robot Analysis Total 1 | . . . . . 1 Derelict Logs Recovered 1 | . . . 1 . . Drone Launches . | . . . . . . Drone Recoveries . | . . . . . . Exploration | -11 -10 -9 -9 -9 -8 ------------- Run | Yrd Mat Mat Min Exi Min Turns Passed 2054 | 43 275 118 479 318 821 Spaces Moved 1418 | 43 135 75 364 246 555 Core 3 | 3 . . . . . Treads . | . . . . . . Legs 686 | . 93 75 364 154 . Wheels 729 | 40 42 . . 92 555 Hover . | . . . . . . Flight . | . . . . . . Fastest Speed 50 | 50 80 120 120 95 140 Average Speed 128 | 77 109 151 120 126 140 Slowest Speed 190 | 80 190 190 120 140 140 Overloaded Moves . | . . . . . . Propulsion Burnouts . | . . . . . . Robots Hopped . | . . . . . . Cave-ins Triggered . | . . . . . . Exploration Rate (%) 45 | 3 32 15 81 52 88 Regions Visited 5 Branch Regions 3 Pre-discovered Areas . | . . . . . . Known Exits Taken 4 | . 1 1 1 1 . Unknown Exits Taken 1 | 1 . . . . . Scrap Searched 3 | . . . 2 . 1 Spaces Dug . | . . . . . . Terrain Destroyed 135 | . . . 44 . 91 Melee . | . . . . . . Projectile . | . . . . . . AOE 135 | . . . 44 . 91 Terrain Rammed . | . . . . . . Walls Destroyed . | . . . . . . Machines Disabled . | . . . . . . Actions | -11 -10 -9 -9 -9 -8 --------- Run | Yrd Mat Mat Min Exi Min Total 1578 | 49 221 81 387 255 585 Wait 55 | . 46 . . . 9 Move 1413 | 42 134 74 363 245 555 Hop . | . . . . . . Pick Up 18 | 1 9 2 1 5 . Fast Attach 11 | 6 3 . 2 . . Attach 7 | . . . 5 . 2 Detach . | . . . . . . Swap 12 | . 5 2 2 2 1 Drop 13 | . 4 3 . 3 3 Fire 49 | . 20 . 14 . 15 Melee . | . . . . . . Ram . | . . . . . . Kick . | . . . . . . Crush . | . . . . . . Escape Stasis . | . . . . . . Rewire . | . . . . . . Trap . | . . . . . . Miscellaneous . | . . . . . . Route ------- -11/Scrapyard -10/Materials -9/Materials -9/Mines (discovered 3 exits: *Mat x2 / *Exi) -9/Exiles -8/Mines (discovered 2 exits: *Mat x2) History --------- Turn | Location | Event 7 | -11/Scrapyard | Discovered new exit (range 16) 44 | -11/Scrapyard | Entered Materials 160 | -10/Materials | Destroyed 7 combat bots 224 | -10/Materials | Discovered new exit (range 4) 318 | -10/Materials | Identified exit to Materials 319 | -10/Materials | Entered another Materials area 319 | -9/Materials | Evolved 2 slots: Propulsion x1, Utility x1 388 | -9/Materials | Discovered new exit (range 14) 436 | -9/Materials | Identified exit to Mines 437 | -9/Materials | Entered Mines 482 | -9/Mines | Lost 4 parts (2n2w) 493 | -9/Mines | Discovered new exit (range 13) 507 | -9/Mines | Identified exit to Materials 597 | -9/Mines | Learned location of 1 exit from Proximity Caves 710 | -9/Mines | YI-UF0 nonchalantly dropped a Grenade Launcher on the ground 756 | -9/Mines | Assembled infested the area 895 | -9/Mines | Discovered exit to Materials (range 5) 910 | -9/Mines | Discovered new exit (range 5) 914 | -9/Mines | Identified exit to Exiles 916 | -9/Mines | Entered Exiles 947 | -9/Exiles | Met 8R-AWN 1016 | -9/Exiles | Met EX-HEX 1062 | -9/Exiles | Met EX-DEC 1142 | -9/Exiles | Discovered new exit (range 12) 1156 | -9/Exiles | Identified exit to Mines 1234 | -9/Exiles | Entered Mines 1338 | -8/Mines | Discovered exit to Materials (range 6) 1402 | -8/Mines | Build established: Mutant 1829 | -8/Mines | Core integrity fell below 50% 1866 | -8/Mines | Lost 5 parts (1p2n2w) 1889 | -8/Mines | Discovered exit to Materials (range 14) 2051 | -8/Mines | Core integrity fell below 20% 2055 | -8/Mines | Destroyed self with Mini Grenade Launcher Last Messages --------------- 01868_ U-05 Engineer lays Concrete. 01870_ U-05 Engineer builds a Wall. 01889_ EXIT=FOUND: MATERIALS 01900_ K-01 Serf cleans the Plasma Injector. 02019_ K-01 Serf collects debris. 02049_ Connecting with Terminal... >>Analysis(G-47 Trooper) Downloading analysis... G-47 Trooper Tier: 3 The G-47 Trooper replaces the G-34's laser with a more effective particle gun. However, during prolonged confrontations the G-47 is prone to overheating as its upgraded weaponry produces more heat than the design can fully dissipate. Feedback: System corruption (+1%). 02049_ ALERT: Suspicious activity at Terminal M001. Dispatching Investigation squad. 02049_ Seismic Survey Station disabled. 02052_ Aluminum Leg destroyed. 02055_ Penetrated by Slug. Map ----- +----------------------------------------------------+ | | | | | | | | | | | | | | | | | | | | | | | | | | | | | | | | | ????????????????????????????? | | ????########????????????????? | | ????# ###??????????????? | | ????# # ##?????????????? | | ???## # #???#########?? | | ???################ #?? | | ?#### #?? | | ?# # ############ ##? | | ?# # # #?# #? | | ?## # # #?# @T#? | | ?# # # ## ##?# h #? | | ?## # # #?##??## ##? | | ## # # #??????### ?? | | ### # # #????????# # #?? | | #### ###????????##?######?? | | ##???????????????????? | | ####################?? | | # # #?? | | ## # < """ """ """ #?? | | ## ## """ """ """ #?? | | # ## """ """ """ #?? | | ### #?? | | #?# """ """ """ """ #?? | | ##?# """ """ """ """ #?? | | #####??# """ """ """ """ #?? | | #??????# #?? | | ???????# """ """ """ """ #?? | | ???????# """ """ """ """ #?? | | #??????# """ """ """ """ #?? | | ######## #?? | | """ """ """ """ #?? | | """ """ """ """ #?? | | #### """ """ """ """ #?? | | ##??# #?? | +----------------------------------------------------+ Best States ------------- Heat Dissipation 35 Energy Generation 10 Energy Capacity 250 Matter Stores 300 Matter Capacity 300 Sight Range 18 Terrain Scan Density 10 Evasion (%) 55 Item Schematics ----------------- None Robot Schematics ------------------ None Fabricated ------------ Nothing Alien Tech Used ----------------- None Achievements -------------- None Challenges ------------ None Game ------ Seed GammaPowerLauncher Manual? 0 Play Time 00:18:31 Cumulative 180.6 hours Start 2024.09.01 @ 15:27:21 End 2024.09.01 @ 17:57:30 Sessions 3 Manual Loads 0 Difficulty Rogue Special Mode None Game No. 185 Rogue 185 Adventurer 0 Explorer 0 Win Type - Total 0 Types 0/0/0/0/0/0/0/0/0 Lore% 20 Gallery% 56 Achievement% 40 Wizard Run 0 Options --------- Layout 0 ASCII 0 Keyboard 1 Movement Vi Keybinds 0 Fullscreen 1 Font 24/Smallcaps Map View 76x50 Zoom Use 0% Tactical HUD 1 Map Filters NONE Filters NONE Steam 1 RUN: af79acd4-b4aa-42c8-a7d7-cc10ca82bb12